bitfinex/quotes_ETHUSD_20251015
["timestamp","ask_amount","ask_price","bid_price","bid_amount"]
[1760551743801,0.001,3993.9,3993.8,5.56690905]
[1760551744830,0.001,3993.9,3993.8,6.00960905]
[1760551745340,0.001,3993.9,3993.8,8.57660905]
[1760551746244,0.001,3994.3,3994.2,3.13723026]
[1760551746549,0.001,3994.3,3994.2,3.87412429]
[1760551747752,0.001,3994.3,3994.2,6.44112429]
[1760551748038,0.001,3994.3,3994.2,3.87412429]
[1760551748243,0.001,3994.3,3994.2,6.44112429]
[1760551748538,0.001,3994.3,3994.2,3.87412429]
[1760551750154,0.4618,3994.3,3994.2,4.86523026]
[1760551750313,0.4618,3994.3,3994.2,0.6336]
[1760551750640,0.001,3994.3,3994.2,3.13723026]
[1760551750810,0.001,3994.3,3994.2,2.3616]
[1760551750811,0.4618,3994.3,3994.2,2.3616]
[1760551751125,0.4618,3994.3,3994.2,0.6336]
[1760551752876,2.50363026,3994.2,3993.5,2.50406783]
[1760551753160,2.50363026,3994.2,3993.3,2.50413298]
[1760551753161,0.2335,3993.6,3993.3,2.50413298]
[1760551753320,0.2335,3993.6,3993.5,0.6336]
[1760551753522,0.2335,3993.6,3993.5,3.13766911]
[1760551754358,0.4608,3993.9,3993.7,2.50390469]
[1760551754558,0.001,3994.3,3993.7,0.6336]
[1760551754758,0.4646,3994.3,3993.5,0.6336]
[1760551754959,0.4646,3994.3,3993.8,0.6336]
[1760551755255,0.4646,3994.3,3993.5,3.13762792]
[1760551755256,0.2335,3993.9,3993.5,3.13762792]
[1760551755502,0.4608,3993.8,3993.5,0.6336]
[1760551755619,0.4608,3993.7,3993.5,0.6336]
[1760551755823,0.4608,3993.6,3993.3,0.6336]
[1760551756123,0.2335,3993.9,3993.6,0.1248]
[1760551756342,2.76237182,3993.9,3993.6,0.1248]
[1760551756656,0.4608,3993.8,3993.3,2.3616]
[1760551756862,0.4608,3993.7,3993.6,0.002]
[1760551757069,0.4618,3994.3,3993.6,0.002]
[1760551757245,0.2335,3994.0,3993.8,0.6336]
[1760551757445,0.2335,3994.0,3993.6,3.1395554]
[1760551757446,0.4608,3993.9,3993.6,3.1395554]
[1760551757645,0.4608,3993.8,3993.6,0.002]
[1760551757858,0.4608,3993.8,3993.7,0.7584]
[1760551758038,0.4608,3993.8,3993.7,0.1248]
[1760551759750,0.6943,3994.0,3993.7,0.1248]
[1760551759966,0.2335,3994.0,3993.7,0.1248]
[1760551760183,0.4608,3993.9,3993.7,0.1248]
[1760551760346,0.4608,3993.8,3993.7,0.1248]
[1760551762876,2.96468101,3993.8,3993.7,0.1248]
[1760551763080,2.50394371,3993.7,3993.6,0.002]
[1760551763460,2.96474371,3993.7,3993.6,0.002]
[1760551763864,4.69274371,3993.7,3993.6,0.002]
[1760551764380,4.71776888,3993.7,3993.6,0.002]
[1760551764783,4.69274371,3993.7,3993.6,0.002]
[1760551765586,4.71776888,3993.7,3993.6,0.002]
[1760551765787,4.69274371,3993.7,3993.6,0.002]
[1760551768008,2.50419452,3993.3,3993.2,1e-08]
[1760551768155,4.23219452,3993.3,3993.2,1e-08]
[1760551768363,4.69299452,3993.3,3993.2,1e-08]
[1760551768673,4.71801969,3993.3,3993.2,1e-08]
[1760551769695,4.69299452,3993.3,3993.2,1e-08]
[1760551774678,4.23219452,3993.3,3993.2,1e-08]
[1760551775086,4.69299452,3993.3,3993.2,1e-08]
[1760551780328,4.23219452,3993.3,3993.2,1e-08]
[1760551781246,2.50419452,3993.3,3993.2,0.46230001]
[1760551781742,2.50419452,3993.3,3993.2,1e-08]
[1760551782032,2.52921969,3993.3,3993.2,1e-08]
[1760551782236,2.50419452,3993.3,3993.2,1e-08]
[1760551782397,0.001,3994.0,3993.2,0.46230001]
[1760551782603,2.50399038,3993.7,3993.2,0.46230001]
[1760551782910,2.50477777,3994.0,3993.3,2.50418654]
[1760551783096,0.001,3994.0,3993.4,0.4623]
[1760551783426,0.001,3994.0,3993.2,0.31931218]
[1760551783427,0.02602517,3994.0,3993.2,0.46230001]
[1760551783628,2.50419452,3993.3,3993.2,1e-08]
[1760551783829,2.52921969,3993.3,3993.2,1e-08]
[1760551784202,2.50419452,3993.3,3993.2,0.46230001]
[1760551784397,2.50411528,3993.5,3993.2,0.46230001]
[1760551784398,2.5041097,3993.5,3993.2,0.46230001]
[1760551784728,2.50416537,3993.4,3993.2,0.46230001]
[1760551785050,2.50416537,3993.4,3993.3,0.4623]
[1760551786148,2.50419452,3993.3,3993.2,1e-08]
[1760551786313,2.50419452,3993.3,3993.2,0.46230001]
[1760551787249,2.50419452,3993.3,3993.2,1e-08]
[1760551789450,2.50418677,3993.4,3993.2,1e-08]
[1760551789660,2.50419452,3993.3,3993.2,1e-08]
[1760551790251,2.50419452,3993.3,3993.2,0.46230001]
[1760551790569,2.50419452,3993.3,3993.2,1e-08]
[1760551790723,0.001,3994.0,3993.2,0.66580001]
[1760551790923,2.50419406,3993.4,3993.2,0.66580001]
[1760551791124,2.50419452,3993.3,3993.2,1e-08]
[1760551792146,2.52921969,3993.3,3993.2,1e-08]
[1760551792357,2.96451969,3993.3,3993.2,1e-08]
[1760551792863,4.69251969,3993.3,3993.2,1e-08]
[1760551793436,4.66749452,3993.3,3993.2,1e-08]
[1760551793757,2.52921969,3993.3,3993.2,1e-08]
[1760551794161,2.53021969,3993.3,3993.2,1e-08]
[1760551794384,2.94049452,3993.3,3993.2,1e-08]
[1760551794960,2.96551969,3993.3,3993.2,1e-08]
[1760551795455,2.94049452,3993.3,3993.2,1e-08]
[1760551795657,2.96551969,3993.3,3993.2,1e-08]
[1760551795973,2.96551969,3993.3,3992.8,1e-08]
[1760551795974,4.23244539,3992.9,3992.8,1e-08]
[1760551796180,4.38487056,3992.9,3992.8,1e-08]
[1760551796480,4.81837056,3992.9,3992.8,1e-08]
[1760551796755,4.35984539,3992.9,3992.8,1e-08]
[1760551797124,4.23244539,3992.9,3992.8,1e-08]
[1760551797525,4.79424539,3992.9,3992.8,1e-08]
[1760551797958,4.81927056,3992.9,3992.8,1e-08]
[1760551798338,4.79424539,3992.9,3992.8,1e-08]
[1760551799844,4.81927056,3992.9,3992.8,1e-08]
[1760551800697,15.8527839,3992.9,3992.8,1e-08]
[1760551800864,4.79424539,3992.9,3992.8,1e-08]
[1760551802470,4.81927056,3992.9,3992.8,1e-08]
[1760551802680,4.79424539,3992.9,3992.8,1e-08]
[1760551803503,8.22494851,3992.9,3992.8,1e-08]
[1760551804505,8.22494851,3992.9,3992.4,0.002]
[1760551804506,4.8662963,3992.5,3992.4,0.002]
[1760551804699,8.29699942,3992.5,3992.4,0.002]
[1760551805006,12.07090254,3992.5,3992.4,0.002]
[1760551805413,15.6204122,3992.5,3992.4,0.002]
[1760551805912,4.2326963,3992.5,3992.4,0.002]
[1760551806408,4.60092147,3992.5,3992.4,0.002]
[1760551806918,4.5758963,3992.5,3992.4,0.002]
[1760551807107,4.2326963,3992.5,3992.4,0.002]
[1760551807516,2.5046963,3992.5,3992.4,0.002]
[1760551810430,2.87292147,3992.5,3992.4,0.002]
[1760551811116,13.28383737,3992.5,3992.4,0.002]
[1760551811317,15.6204122,3992.5,3992.4,0.002]
[1760551812129,15.6204122,3992.5,3992.0,1e-08]
[1760551812130,2.50494727,3992.1,3992.0,1e-08]
[1760551812334,4.89157244,3992.1,3992.0,1e-08]
[1760551812531,5.20974727,3992.1,3992.0,1e-08]
[1760551812708,4.23294727,3992.1,3992.0,1e-08]
[1760551812908,4.57614727,3992.1,3992.0,1e-08]
[1760551813299,2.48494727,3992.1,3992.0,1e-08]
[1760551813924,2.82814727,3992.1,3992.0,1e-08]
[1760551814238,2.85317244,3992.1,3992.0,1e-08]
[1760551815106,3.48677244,3992.1,3992.0,1e-08]
[1760551815433,3.46174727,3992.1,3992.0,1e-08]
[1760551815635,4.86698658,3991.4,3991.3,1e-08]
[1760551816146,4.23338658,3991.4,3991.3,1e-08]
[1760551816548,4.23338658,3991.4,3991.3,0.46430001]
[1760551816735,4.25841175,3991.4,3991.3,1e-08]
[1760551816919,4.23338658,3991.4,3991.3,1e-08]
[1760551817920,4.25841175,3991.4,3991.3,1e-08]
[1760551818319,4.23338658,3991.4,3991.3,1e-08]
[1760551819666,4.60161175,3991.4,3991.3,1e-08]
[1760551819827,4.57658658,3991.4,3991.3,1e-08]
[1760551820024,4.23338658,3991.4,3991.3,1e-08]
[1760551820223,4.60161175,3991.4,3991.3,1e-08]
[1760551820423,4.57658658,3991.4,3991.3,1e-08]
[1760551821168,5.21018658,3991.4,3991.3,1e-08]
[1760551821322,5.33775499,3991.4,3991.3,1e-08]
[1760551822924,7.85558699,3991.4,3991.3,1e-08]
[1760551823395,9.33510768,3991.0,3990.9,0.002]
[1760551823603,19.74602358,3991.0,3990.9,0.002]
[1760551823780,20.08922358,3991.0,3990.9,0.002]
[1760551823985,18.09478158,3991.0,3990.9,0.002]
[1760551824285,15.62135358,3991.0,3990.9,0.002]
[1760551824455,4.23363768,3991.0,3990.9,0.002]
[1760551825387,4.23363768,3991.0,3990.9,0.4741]
[1760551825589,4.25866285,3991.0,3990.9,0.002]
[1760551826288,4.23363768,3991.0,3990.9,0.002]
[1760551828265,4.23363768,3991.0,3990.9,0.4741]
[1760551828693,2.50563768,3991.0,3990.9,0.4741]
[1760551830981,2.63043768,3991.0,3990.9,0.4741]
[1760551832276,2.65546285,3991.0,3990.9,0.4741]
[1760551832806,2.63043768,3991.0,3990.9,0.4741]
[1760551835008,0.1248,3991.0,3990.9,0.4741]
[1760551835316,2.63043768,3991.0,3990.9,0.4741]
[1760551837877,0.1248,3991.0,3990.9,0.4741]
[1760551838086,2.63043768,3991.0,3990.9,0.4741]
[1760551838507,0.001,3991.4,3990.9,0.4741]
[1760551838832,0.001,3991.4,3991.3,0.2245]
[1760551838833,2.63118658,3991.4,3991.3,0.2245]
[1760551839130,2.63118658,3991.4,3991.3,0.6966]
[1760551840135,0.1258,3991.4,3991.3,0.6966]
[1760551840637,0.001,3991.4,3991.3,0.6966]
[1760551841007,0.001,3991.4,3991.3,3.83564935]
[1760551841336,0.001,3991.4,3991.3,2.08912181]
[1760551841513,0.001,3991.4,3991.3,4.59457116]
[1760551841709,0.001,3991.4,3991.3,0.8214]
[1760551842320,0.001,3991.4,3990.9,0.002]
[1760551842321,2.50561995,3991.1,3991.0,0.2245]
[1760551842537,2.53064512,3991.1,3991.0,0.6966]
[1760551842717,2.50563768,3991.0,3990.9,0.002]
[1760551843245,2.63038238,3991.1,3990.9,0.002]
[1760551843454,0.1248,3991.1,3990.9,0.002]
[1760551843599,0.1248,3991.1,3990.9,0.4741]
[1760551843944,2.50639703,3991.4,3990.9,0.4741]
[1760551843945,2.50546635,3991.3,3990.9,0.4741]
[1760551844141,2.50546635,3991.3,3991.1,0.2245]
[1760551844299,0.1258,3991.4,3991.1,0.2245]
[1760551844499,2.50546659,3991.3,3991.2,0.4721]
[1760551845353,2.50551212,3991.2,3990.9,0.002]
[1760551845645,2.49563768,3991.0,3990.9,0.002]
[1760551845801,0.001,3991.4,3991.0,0.4721]
[1760551845998,2.5055749,3991.1,3990.9,0.002]
[1760551846302,2.5055749,3991.1,3991.0,0.2245]
[1760551846504,0.1258,3991.4,3991.0,0.6966]
[1760551846729,2.63124816,3991.4,3991.1,0.4721]
[1760551846949,2.63124816,3991.4,3991.2,0.4721]
[1760551847130,0.001,3991.4,3991.3,0.4721]
[1760551847940,2.50638872,3991.4,3991.2,0.1248]
[1760551848242,2.50638872,3991.4,3990.9,0.002]
[1760551848243,2.50561135,3991.1,3990.9,0.002]
[1760551848445,2.63119136,3991.4,3991.0,0.4721]
[1760551848602,2.5055749,3991.1,3990.9,0.002]
[1760551849430,2.50563768,3991.0,3990.9,0.002]
[1760551850038,2.63124084,3991.4,3990.9,0.002]
[1760551850243,2.50559058,3991.1,3990.9,0.002]
[1760551850441,2.50563768,3991.0,3990.9,0.002]
[1760551850642,2.5054537,3991.3,3990.9,0.002]
[1760551850643,2.50558845,3991.1,3990.9,0.002]
[1760551850800,2.50563768,3991.0,3990.9,0.002]
[1760551851201,0.1258,3991.4,3990.9,0.002]
[1760551851401,2.50563768,3991.0,3990.9,0.002]
[1760551857879,2.94843768,3991.0,3990.9,0.002]
[1760551858859,2.97346285,3991.0,3990.9,0.002]
[1760551859168,2.94843768,3991.0,3990.9,0.002]
[1760551859754,0.001,3991.4,3990.9,0.002]
[1760551859954,2.50563768,3991.0,3990.9,0.002]
[1760551860489,2.97346285,3991.0,3990.9,0.002]
[1760551860640,2.94843768,3991.0,3990.9,0.002]
[1760551861270,2.97346285,3991.0,3990.9,0.002]
[1760551861658,4.70146285,3991.0,3990.9,0.002]
[1760551861965,4.67643768,3991.0,3990.9,0.002]
[1760551862179,4.70146285,3991.0,3990.9,0.002]
[1760551862342,4.67643768,3991.0,3990.9,0.002]
[1760551864860,4.23363768,3991.0,3990.9,0.002]
[1760551865763,4.70146285,3991.0,3990.9,0.002]
[1760551865963,4.70246285,3991.0,3990.9,0.002]
[1760551866163,4.67743768,3991.0,3990.9,0.002]
[1760551866540,5.31103768,3991.0,3990.9,0.002]
[1760551867973,4.23414004,3990.2,3990.1,0.002]
[1760551868479,4.67564004,3990.2,3990.1,0.002]
[1760551869549,4.23414004,3990.2,3990.1,0.002]
[1760551872448,2.50614004,3990.2,3990.1,0.2262]
[1760551872648,2.50614004,3990.2,3990.1,0.6646]
[1760551872982,2.50614004,3990.2,3990.1,0.2262]
[1760551873558,2.53116521,3990.2,3990.1,0.002]
[1760551873752,2.50614004,3990.2,3990.1,0.002]
[1760551874774,2.53116521,3990.2,3990.1,0.002]
[1760551874982,2.50645411,3989.7,3989.5,1e-08]
[1760551875165,2.50645411,3989.7,3988.6,0.4384]
[1760551875166,4.23501965,3988.8,3987.7,0.4384]
[1760551875481,4.23501965,3988.8,3988.0,0.4384]
[1760551875683,4.26004482,3988.8,3988.0,0.4384]
[1760551875911,4.62764482,3988.8,3988.0,0.4384]
[1760551876112,0.2308,3989.8,3987.1,2.53316849]
[1760551876409,2.50701965,3988.8,3988.7,0.4404]
[1760551876586,2.50701965,3988.8,3988.7,0.002]
[1760551876795,2.53204482,3988.8,3988.7,0.002]
[1760551878213,2.50701965,3988.8,3988.7,0.002]
[1760551878410,2.53204482,3988.8,3988.7,0.002]
[1760551878910,0.2308,3989.8,3988.7,0.4404]
[1760551879114,2.50701965,3988.8,3988.7,0.4404]
[1760551879938,2.53204482,3988.8,3988.7,0.002]
[1760551880125,2.50701965,3988.8,3988.7,0.002]
[1760551880734,2.53204482,3988.8,3988.7,0.002]
[1760551881731,4.62384482,3988.8,3988.7,0.002]
[1760551883202,2.50777667,3987.6,3987.3,0.4572]
[1760551883540,0.02502517,3987.5,3987.4,0.4572]
[1760551883735,2.53286216,3987.5,3987.4,0.4572]
[1760551883937,0.02502517,3987.5,3987.4,0.4572]
[1760551884141,2.5075342,3988.0,3987.4,0.4572]
[1760551884637,2.50757723,3988.0,3987.4,0.4572]
[1760551885009,0.02502517,3987.9,3987.4,0.4572]
[1760551885203,2.50789988,3987.4,3987.3,0.1248]
[1760551885548,2.50785256,3987.5,3987.3,0.582]
[1760551885847,0.02502517,3987.4,3987.3,0.1248]
[1760551886044,2.63240247,3987.9,3987.3,0.1248]
[1760551886246,2.50789084,3987.5,3987.3,0.1248]
[1760551886546,0.1248,3987.9,3987.3,0.1248]
[1760551886721,2.50789988,3987.4,3987.2,0.4572]
[1760551886906,0.02502517,3987.3,3987.2,0.4572]
[1760551887128,2.50807938,3987.2,3987.0,0.1248]
[1760551887452,2.50797973,3987.3,3986.9,0.2242]
[1760551887817,0.1248,3987.4,3987.0,0.4572]
[1760551888028,2.63275027,3987.4,3987.1,0.4572]
[1760551888234,0.1248,3987.4,3986.9,0.2242]
[1760551888543,0.3618,3987.8,3987.0,0.4572]
[1760551888746,2.50731522,3988.4,3987.0,0.4572]
[1760551888747,0.1248,3987.4,3987.0,0.4572]
[1760551888950,0.1248,3987.6,3987.0,3.09013355]
[1760551889257,2.632581,3987.6,3987.1,0.4572]
[1760551889557,0.1248,3987.6,3987.2,0.4572]
[1760551889769,0.02502517,3988.2,3986.9,0.2242]
[1760551889923,2.50789988,3987.4,3987.3,0.4572]
[1760551890120,2.50788199,3987.5,3987.3,0.4572]
[1760551890421,2.50815149,3987.0,3986.9,0.2242]
[1760551891148,2.50834023,3986.7,3986.6,0.002]
[1760551891349,2.63314023,3986.7,3986.6,0.002]
[1760551894455,0.1248,3986.7,3986.6,0.002]
[1760551894889,0.1248,3986.7,3986.6,0.4592]
[1760551895495,2.63295561,3987.0,3986.6,0.4592]
[1760551895691,2.63295561,3987.0,3986.7,0.4572]
[1760551895692,2.5082566,3986.9,3986.7,0.4572]
[1760551895897,0.1248,3987.0,3986.8,0.4572]
[1760551896183,2.50834018,3986.8,3986.6,0.002]
[1760551896339,2.50834018,3986.8,3986.7,0.4572]
[1760551896544,2.5082183,3986.9,3986.7,0.4572]
[1760551896785,2.50827731,3986.8,3986.7,0.4572]
[1760551897351,1.9504,3987.9,3986.7,0.4572]
[1760551897352,0.5209,3987.9,3986.7,0.4572]
[1760551897659,2.63283201,3987.2,3986.7,0.4572]
[1760551897861,2.63283201,3987.2,3986.8,0.4572]
[1760551898075,2.50810088,3987.1,3986.9,0.4572]
[1760551898278,0.1248,3987.2,3986.6,0.1268]
[1760551898574,2.50790093,3987.4,3987.1,0.2242]
[1760551898745,2.50784049,3987.5,3987.1,0.6814]
[1760551898941,2.63257942,3987.6,3987.1,0.6814]
[1760551899270,0.1248,3987.6,3987.1,0.6814]
[1760551899468,2.50783699,3987.5,3987.1,0.6814]
[1760551899672,2.50789988,3987.4,3987.1,0.6814]
[1760551899871,2.50802568,3987.2,3987.1,0.2242]
[1760551900067,2.50802568,3987.2,3987.1,0.002]
[1760551900068,2.53305085,3987.2,3987.1,0.002]
[1760551900849,0.02502517,3987.2,3987.1,0.002]
[1760551901080,2.50798625,3987.3,3987.1,0.002]
[1760551901376,2.50802568,3987.2,3987.1,0.002]
[1760551901776,2.63258359,3987.6,3987.1,0.002]
[1760551901945,2.50793196,3987.4,3987.1,0.6834]
[1760551902151,2.50793196,3987.4,3987.2,0.4572]
[1760551902566,2.50793196,3987.4,3987.1,0.2262]
[1760551902747,2.50785198,3987.5,3987.1,0.2262]
[1760551902955,2.50785198,3987.5,3987.2,0.4572]
[1760551903160,0.1248,3987.6,3987.1,0.2262]
[1760551903382,2.50776852,3987.7,3987.3,0.1248]
[1760551903589,2.50776852,3987.7,3987.4,0.4572]
[1760551903750,2.50778243,3987.6,3987.4,0.4572]
[1760551903950,2.50789988,3987.4,3987.3,0.1248]
[1760551904183,2.50800502,3987.3,3987.1,0.002]
[1760551904381,2.53305085,3987.2,3987.1,0.002]
[1760551905789,2.50802568,3987.2,3987.1,0.002]
[1760551905990,2.53305085,3987.2,3987.1,0.002]
[1760551906289,2.95635085,3987.2,3987.1,0.002]
[1760551906470,2.93132568,3987.2,3987.1,0.002]
[1760551906666,2.95635085,3987.2,3987.1,0.002]
[1760551907073,2.93132568,3987.2,3987.1,0.002]
[1760551908555,2.50802568,3987.2,3987.1,0.002]
[1760551910681,0.2224,3987.8,3987.1,0.4654]
[1760551911003,2.50802568,3987.2,3987.1,0.002]
[1760551912489,2.50798055,3987.3,3987.1,0.2161]
[1760551912691,2.50791031,3987.4,3987.1,0.6795]
[1760551912895,0.1783,3988.9,3987.2,0.4634]
[1760551913204,2.50756469,3988.0,3987.2,0.4634]
[1760551913368,2.50756469,3988.0,3987.3,2.82672066]
[1760551913580,2.50756469,3988.0,3987.4,0.4634]
[1760551913918,2.50729546,3988.4,3987.7,2.50769079]
[1760551914280,2.50715874,3988.6,3987.5,0.6336]
[1760551914281,2.50735487,3988.3,3987.8,0.4634]
[1760551914597,0.1783,3988.9,3987.9,0.4634]
[1760551914800,2.50739351,3988.3,3987.9,0.4634]
[1760551915117,2.50739351,3988.3,3988.0,0.4329]
[1760551915416,2.50727187,3988.4,3987.4,0.6336]
[1760551915723,2.50770488,3987.8,3987.0,0.4329]
[1760551915917,2.50770488,3987.8,3987.2,0.4329]
[1760551916204,2.50770488,3987.8,3987.2,1.15457442]
[1760551916706,2.50701965,3988.8,3987.2,1.15457442]
[1760551916876,2.50768238,3987.8,3987.2,0.4329]
[1760551917075,2.50768238,3987.8,3987.2,2.1609]
[1760551917301,2.50760808,3987.9,3987.2,0.4329]
[1760551917501,2.50759223,3987.9,3987.4,1.728]
[1760551917701,2.50759223,3987.9,3987.4,0.4329]
[1760551917902,2.50748019,3988.1,3987.4,0.4329]
[1760551917903,2.50766335,3987.8,3987.4,0.4329]
[1760551918204,2.50760434,3987.9,3987.5,0.4329]
[1760551918404,2.50746059,3988.1,3987.1,0.002]
[1760551918570,2.50792434,3987.4,3987.1,0.002]
[1760551918982,0.1248,3987.5,3987.1,0.2243]
[1760551919187,2.63264538,3987.5,3987.1,0.2243]
[1760551919600,0.0687,3987.8,3987.1,0.2243]
[1760551919601,0.1248,3987.8,3987.2,0.4329]
[1760551919801,2.50771121,3987.7,3987.2,0.4329]
[1760551920003,0.1248,3987.8,3987.2,0.4329]
[1760551920201,0.1248,3987.8,3987.1,0.3491]
[1760551920607,2.5077781,3987.6,3987.1,0.3491]
[1760551920905,2.63249077,3987.8,3987.2,0.4329]
[1760551921113,2.50765183,3987.8,3987.2,2.94088832]
[1760551921413,2.50765183,3987.8,3987.4,0.1248]
[1760551921919,2.50733891,3988.3,3987.7,2.6324727]
[1760551922086,2.50819806,3988.6,3987.5,0.4329]
[1760551922087,2.50816978,3988.6,3987.8,0.4329]
[1760551922290,0.001,3988.6,3988.1,0.1248]
[1760551922489,0.001,3988.6,3988.2,0.6552]
[1760551922688,2.50814536,3988.6,3988.5,0.1248]
[1760551923210,2.50739682,3988.2,3988.1,0.1248]
[1760551923397,2.50764895,3987.8,3987.6,0.1248]
[1760551923584,0.1248,3988.3,3987.6,0.1248]
[1760551923585,0.02502517,3987.7,3987.6,0.1248]
[1760551923786,2.50757902,3988.0,3987.6,0.1248]
[1760551924009,2.50760091,3987.9,3987.6,0.1248]
[1760551924377,0.1248,3988.3,3987.6,0.5577]
[1760551924584,2.50815237,3988.6,3987.7,0.4329]
[1760551924801,2.50741215,3988.2,3987.9,0.1248]
[1760551924999,2.50725429,3988.5,3987.9,0.1248]
[1760551925000,2.50739374,3988.3,3987.9,0.1248]
[1760551925314,2.50727184,3988.4,3987.9,0.5577]
[1760551925632,0.1258,3988.6,3988.0,0.4329]
[1760551925781,0.001,3988.6,3988.3,0.3471]
[1760551926116,0.001,3988.6,3988.5,3.26560822]
[1760551926625,0.001,3988.6,3988.5,3.69850822]
[1760551926782,0.001,3988.6,3988.5,4.34132099]
[1760551927610,0.001,3988.6,3988.5,1.83411277]
[1760551927810,0.001,3988.6,3988.5,4.34132099]
[1760551929681,0.001,3988.6,3988.5,1.83411277]
[1760551930019,0.001,3988.6,3988.5,5.42650822]
[1760551933818,0.001,3988.6,3988.5,1.8528]
[1760551934004,0.001,3988.6,3988.5,1.828476]
[1760551934206,0.001,3988.6,3988.5,2.3616]
[1760551934408,0.001,3988.6,3988.5,1.728]
[1760551935301,0.4568,3988.6,3988.5,1.728]
[1760551935617,0.001,3988.6,3988.5,1.728]
[1760551937040,0.001,3988.6,3988.5,5.47450822]
[1760551937523,0.001,3988.6,3988.5,5.57498687]
[1760551939631,0.001,3988.6,3988.5,5.14208687]
[1760551939922,0.001,3988.6,3988.5,4.96928687]
[1760551940514,0.001,3988.6,3988.5,2.3616]
[1760551940730,0.001,3988.6,3988.5,1.728]
[1760551940934,0.4274,3988.6,3988.0,2.6080161]
[1760551941107,0.4274,3988.6,3988.1,1.728]
[1760551941431,0.45242517,3988.6,3988.2,0.6336]
[1760551941638,0.4264,3988.5,3988.2,0.6336]
[1760551942115,0.02602517,3988.6,3988.5,3.14080822]
[1760551942116,0.001,3988.6,3988.5,3.14080822]
[1760551943012,0.001,3988.6,3988.5,5.30580822]
[1760551943713,0.001,3988.6,3988.5,4.86880822]
[1760551943935,0.001,3988.6,3988.5,4.99360822]
[1760551945536,0.001,3988.6,3988.5,5.43060822]
[1760551945736,0.001,3988.6,3988.5,6.30511662]
[1760551946122,0.001,3988.6,3988.5,5.86811662]
[1760551946325,0.001,3988.6,3988.5,1.8528]
[1760551946526,0.4274,3988.6,3988.5,0.1248]
[1760551946855,0.4274,3988.6,3988.3,0.1248]
[1760551947004,2.50727108,3988.4,3988.3,0.1248]
[1760551947205,2.93367108,3988.4,3988.3,0.1248]
[1760551948105,2.5075296,3988.0,3987.9,0.1248]
[1760551948435,2.53244371,3988.2,3987.9,0.1248]
[1760551948621,0.4264,3988.1,3987.9,0.1248]
[1760551949228,0.02502517,3988.0,3987.9,0.1248]
[1760551949433,0.4264,3988.0,3987.9,0.1248]
[1760551949942,0.02502517,3988.1,3987.9,0.1248]
[1760551950111,0.4264,3988.0,3987.9,0.1248]
[1760551950523,0.02502517,3988.1,3987.9,0.1248]
[1760551950740,0.1258,3988.6,3988.2,2.50735067]
[1760551950928,0.001,3988.6,3988.5,3.14080822]
[1760551951144,0.001,3988.6,3988.5,5.0186803]
[1760551951345,0.001,3988.6,3988.5,5.53108637]
[1760551951551,0.001,3988.6,3988.5,5.09408637]
[1760551951730,0.001,3988.6,3988.5,2.58687815]
[1760551951928,0.001,3988.6,3988.5,3.07864487]
[1760551952236,0.001,3988.6,3988.5,4.99360822]
[1760551952974,0.001,3988.6,3988.5,4.99560822]
[1760551953763,0.001,3988.6,3988.5,5.43260822]
[1760551955628,0.001,3988.6,3988.5,2.9254]
[1760551955870,0.001,3988.6,3988.5,4.99560822]
[1760551956027,0.001,3988.6,3988.5,5.77792614]
[1760551956859,0.001,3988.6,3988.5,3.27071792]
[1760551957031,0.001,3988.6,3988.5,4.99560822]
[1760551957464,0.001,3988.6,3988.5,5.43260822]
[1760551960444,0.001,3988.6,3988.5,2.4884]
[1760551960664,0.4274,3988.6,3988.5,1.8548]
[1760551960871,0.4274,3988.6,3988.5,0.1268]
[1760551962371,0.001,3988.6,3988.5,2.63400822]
[1760551962780,0.001,3988.6,3988.5,5.68253825]
[1760551964391,0.001,3988.6,3988.5,6.11953825]
[1760551964763,0.001,3988.6,3988.5,6.22001438]
[1760551964965,0.001,3988.6,3988.5,5.78301438]
[1760551965160,0.001,3988.6,3988.5,2.4884]
[1760551965362,0.001,3988.6,3988.5,4.99560822]
[1760551965660,0.001,3988.6,3988.5,2.4884]
[1760551965861,0.001,3988.6,3988.5,1.8548]
[1760551966055,0.4351,3988.6,3988.5,1.8548]
[1760551966458,0.001,3988.6,3988.5,4.36200822]
[1760551966658,0.001,3988.6,3988.5,5.5079208]
[1760551967157,0.001,3988.6,3988.5,4.36200822]
[1760551968200,0.001,3988.6,3988.5,1.8548]
[1760551968400,0.001,3988.6,3988.5,4.36200822]
[1760551971907,0.001,3988.6,3988.5,4.99560822]
[1760551973120,0.001,3988.6,3988.5,5.42780822]
[1760551973512,0.001,3988.6,3988.5,6.22132217]
[1760551975059,0.001,3988.6,3988.5,5.78912217]
[1760551976568,0.001,3988.6,3988.5,6.23932217]
[1760551977423,0.001,3988.6,3988.5,5.78912217]
[1760551977625,0.001,3988.6,3988.5,6.23932217]
[1760551978170,0.001,3988.6,3988.5,8.79532217]
[1760551978462,0.001,3988.6,3988.5,8.67052217]
[1760551978666,0.001,3988.6,3988.5,8.79532217]
[1760551978967,0.001,3988.6,3988.5,6.23932217]
[1760551979466,0.001,3988.6,3988.5,8.79532217]
[1760551979649,0.001,3988.6,3988.5,6.23932217]
[1760551979846,0.001,3988.6,3988.5,8.79532217]
[1760551980042,0.001,3988.6,3988.5,6.23932217]
[1760551980238,0.001,3988.6,3988.5,8.79532217]
[1760551980457,0.001,3988.6,3988.5,6.23932217]
[1760551980660,0.001,3988.6,3988.5,8.79532217]
[1760551980952,0.001,3988.6,3988.5,6.23932217]
[1760551981546,0.001,3988.6,3988.5,6.49042217]
[1760551981751,0.001,3988.6,3988.5,9.04642217]
[1760551982747,1e-08,3989.1,3989.0,2.50689395]
[1760551983059,1e-08,3989.1,3989.0,5.11918334]
[1760551983258,1e-08,3989.1,3989.0,8.12538334]